Cogmind - Beta 11.1 @@@ ROGUE MODE // 2022.05.06 @ 16:26:41 // Winter2019/RPGLIKE Player: Kiks Result: Self-destructed Performance ------------- Evolutions (3) 1500 Regions Visited (6) 1200 Robots Destroyed (85) 425 Value Destroyed (2391) 2391 Prototype IDs (24) 480 Alien Tech Used (0) 0 Bonus (759) 759 TOTAL SCORE: 6755 Bonus ------- High Alert Combat Kills 697 Follower Combat Kills 39 Aligned with FarCom 300 Friendly Fire -277 Cogmind --------- Core Integrity 78/600 Matter 290/300 Energy 290/290 System Corruption 1% Temperature Cool (64) Movement Walking (125) Location -7/Factory Parts ------- > --- POWER (1) -------- Improved Deuterium Engine > --- PROPULSION (3) --- Improved Aluminum Leg Improved Titanium Leg > --- UTILITY (4) ------ Heavy Armor Plating > --- WEAPON (2) ------- (None) > --- INVENTORY (3) ---- Shield Generator System Restoration Module Peak State ------------ > --- POWER ------------ Improved Deuterium Engine > --- PROPULSION ------- Improved Aluminum Leg Improved Aluminum Leg Improved Titanium Leg > --- UTILITY ---------- Improved Cooling System Improved Signal Interpreter Heavy Armor Plating > --- WEAPON ----------- YOLO Cannon > --- INVENTORY -------- Protomatter Shield Generator System Restoration Module [Rating: 45] Favorites ----------- Power Light Ion Engine Engine Light Ion Engine Power Core Light Nuclear Core Propulsion Aluminum Leg Leg Aluminum Leg Utility Improved Signal Interpreter Device Sensor Array Processor Improved Signal Interpreter Protection Heavy Armor Plating Weapon YOLO Cannon Energy Gun Particle Gun Energy Cannon YOLO Cannon Ballistic Gun Light Assault Rifle Build | -11 -10 -10 -10 -9 -8 -7 ------- Run | Scr Mat Min Exi Min Mat Fac Slots Evolved 6 | 3 . . . . 3 . Power . | . . . . . . . Propulsion 2 | 1 . . . . 1 . Utility 3 | 1 . . . . 2 . Weapon 1 | 1 . . . . . . Parts Attached 22 | 5 4 . 1 1 8 3 Power 3 | 1 . . . . 1 1 Engine 2 | 1 . . . . . 1 Core 1 | . . . . . 1 . Reactor . | . . . . . . . Propulsion 6 | 2 . . . . 3 1 Treads . | . . . . . . . Leg 6 | 2 . . . . 3 1 Wheel . | . . . . . . . Hover . | . . . . . . . Flight . | . . . . . . . Utility 8 | . 2 . . 1 4 1 Device 4 | . 1 . . 1 1 1 Storage . | . . . . . . . Processor 2 | . 1 . . . 1 . Hackware . | . . . . . . . Protection 2 | . . . . . 2 . Artifact . | . . . . . . . Weapon 5 | 2 2 . 1 . . . Energy Gun 2 | . 2 . . . . . Energy Cannon 1 | . . . 1 . . . Ballistic Gun 2 | 2 . . . . . . Ballistic Cannon . | . . . . . . . Launcher . | . . . . . . . Special Weapon . | . . . . . . . Impact Weapon . | . . . . . . . Slashing Weapon . | . . . . . . . Piercing Weapon . | . . . . . . . Special Melee Weapon . | . . . . . . . Unidentified Prototypes 1 | . . . . 1 . . Parts Lost 4 | . . . . . . 4 Power . | . . . . . . . Propulsion 1 | . . . . . . 1 Utility 2 | . . . . . . 2 Weapon 1 | . . . . . . 1 Highest Loss Streak 4 | . . . . . . 4 To Critical Strikes . | . . . . . . . Average Slot Usage (%) 84 | . 90 100 91 85 78 80 Engine 8 | . 14 14 14 14 6 . Core 3 | . . . . . 4 9 Leg 28 | . 28 28 28 28 27 30 Device 11 | . 13 14 14 14 9 10 Processor 11 | . 5 14 14 14 14 10 Protection 4 | . . . . . 5 10 Energy Gun 5 | . 9 28 11 . . . Energy Cannon 7 | . . . 8 14 10 10 Ballistic Gun 2 | . 18 . . . . . Naked Turns . | . . . . . . . Heaviest Build 45 | 6 8 8 22 22 39 45 Greatest Support 51 | 20 20 20 25 25 46 51 Greatest Overweight (x) 1 | . . . . . 1 . Average Overweight (x) . | . . . . . . . Largest Inventory Capacity 3 | 3 3 3 3 3 3 3 Average Capacity 2 | 2 3 3 3 3 3 3 Most Carried 3 | . 1 1 1 1 2 3 Average Carried 1 | . . 1 1 1 1 2 Final Capacity 3 | 3 3 3 3 3 3 3 Final Carried 2 | . 1 1 1 1 2 2 Class Distribution -------------------- 52% | Mutant 26% | Scavenger-Mutant 21% | Skirmisher Dominant Class ---------------- Mutant | -10/Materials Mutant | -10/Mines Mutant | -10/Exiles Skirmisher | -9/Mines Skirmisher | -8/Materials Scavenger-Mutant | -7/Factory Resources | -11 -10 -10 -10 -9 -8 -7 ----------- Run | Scr Mat Min Exi Min Mat Fac Matter Collected 521 | 210 155 36 . 20 80 20 Remotely . | . . . . . . . Salvage Created 1866 | . 367 40 . 171 791 497 Parts 127 | . 23 4 . 12 44 44 Haulers Intercepted 2 | . . . . . 1 1 Recyclers Shooed 2 | . 1 . . . . 1 Parts Field Recycled . | . . . . . . . Retrieved Matter . | . . . . . . . Parts Self-Destructed . | . . . . . . . Prevented . | . . . . . . . Kills | -11 -10 -10 -10 -9 -8 -7 ------- Run | Scr Mat Min Exi Min Mat Fac Combat Hostiles Destroyed 50 | . 7 . . 6 25 12 Guns 7 | . 7 . . . . . Cannons 9 | . . . . . 5 4 AOE 27 | . . . . 6 13 8 Classes Destroyed 14 | . 5 1 . 1 6 1 Worker 7 | . 1 1 . . 2 3 Builder 6 | . . . . 2 . 4 Tunneler 3 | . . 1 . 1 . 1 Hauler 2 | . . . . . 1 1 Recycler 3 | . 3 . . . . . Mechanic 2 | . . . . . 1 1 Operator 3 | . . . . . 2 1 Watcher 7 | . 2 . . . 3 2 Swarmer 19 | . 3 . . 4 8 4 Grunt 18 | . 4 . . 4 7 3 Sentry 10 | . . . . . 8 2 Hunter 2 | . . . . . 1 1 Programmer 2 | . . . . . . 2 Heavy 1 | . . . . . 1 . Best Kill Streak 10 | . 10 1 . 4 7 7 Combat Bots Only 7 | . 7 . . 4 6 4 Max Kills in Single Turn 6 | . 2 1 . 4 3 6 Gunslinging . | . . . . . . . Exploded 4 | . . . . 4 2 4 Melee . | . . . . . . . Uniques/NPCs Destroyed . | . . . . . . . Combat | -11 -10 -10 -10 -9 -8 -7 -------- Run | Scr Mat Min Exi Min Mat Fac Damage Taken 1589 | . 336 18 . 53 937 245 Core 1152 | . 280 16 . 42 637 177 Absorbed by Shields . | . . . . . . . Redirected to Core 951 | . 190 6 . 42 590 123 Core Remaining (%) 76 | 100 . . . 92 38 . Volleys Fired 102 | . 33 2 . 6 35 26 Largest 2 | . 2 2 . 1 1 1 Hottest 105 | . 105 105 . 100 100 100 Shots Fired 136 | . 66 4 . 6 35 25 Gun 70 | . 66 4 . . . . Cannon 66 | . . . . 6 35 25 Launcher . | . . . . . . . Special . | . . . . . . . Kinetic 57 | . 57 . . . . . Thermal 79 | . 9 4 . 6 35 25 Explosive . | . . . . . . . Electromagnetic . | . . . . . . . Robot Hit Streak 17 | . 6 3 . 3 9 17 Robot Miss Streak 3 | . 3 . . 1 3 1 Penetration Max . | . . . . . . . Secondary Targets 1 | . 1 . . . . . Max Gunslinging Chain 1 | . 1 . . . . . Shots Hit Robots 64 | . 34 2 . 3 17 8 Core Hits 78 | . 20 2 . 11 24 21 Critical Kills 7 | . 1 . . . 6 . Critical Parts Destroyed . | . . . . . . . Critical Strikes 7 | . 1 . . . 6 . Meltdown 6 | . . . . . 6 . Destroy 1 | . 1 . . . . . Melee Attacks . | . . . . . . . Impact . | . . . . . . . Slashing . | . . . . . . . Piercing . | . . . . . . . Sneak Attacks . | . . . . . . . Combat Hostiles . | . . . . . . . Follow-up Attacks . | . . . . . . . Damage Inflicted 9613 | . 446 23 . 980 4579 3585 Guns 469 | . 446 23 . . . . Cannons 4106 | . . . . 379 2271 1456 Explosions 5038 | . . . . 601 2308 2129 Melee . | . . . . . . . Ramming . | . . . . . . . Kinetic 376 | . 376 . . . . . Thermal 9161 | . 70 23 . 980 4579 3509 Explosive . | . . . . . . . Electromagnetic 76 | . . . . . . 76 Impact . | . . . . . . . Slashing . | . . . . . . . Piercing . | . . . . . . . Highest Corruption 1 | . . . . . . 1 Average Corruption 1 | . . . . . . 1 Corruption Purged . | . . . . . . . Corruption Blocked . | . . . . . . . Overload Shots . | . . . . . . . Overflow Damage 1366 | . . . . 95 373 898 Projectiles 888 | . . . . 75 151 662 Explosions 478 | . . . . 20 222 236 Melee . | . . . . . . . Knockbacks . | . . . . . . . Impact . | . . . . . . . Kinetic . | . . . . . . . Secondary . | . . . . . . . Self-Inflicted Damage 394 | . . . . 39 214 141 Shots 7 | . . . . 1 4 2 Rammed . | . . . . . . . Targets Rammed . | . . . . . . . Kicked . | . . . . . . . Crushed . | . . . . . . . Highest Temperature 135 | . 135 45 . 40 76 64 Average Temperature 29 | . 43 25 . 18 26 36 Received Heat Transfer 408 | . 201 . . 9 180 18 Siege Activations . | . . . . . . . Robots Corrupted . | . . . . . . . Combat Hostiles . | . . . . . . . Parts Fried . | . . . . . . . Impact Corruptions . | . . . . . . . Robots Melted 7 | . . . . . 7 . Combat Hostiles 7 | . . . . . 7 . Parts Melted 23 | . . . . 2 16 5 Heat Transferred 8021 | . 161 50 . 960 4210 2640 Parts Sabotaged . | . . . . . . . Parts Stolen . | . . . . . . . Parts Stripped . | . . . . . . . Power Chain Reactions . | . . . . . . . Missiles Intercepted . | . . . . . . . Alert | -11 -10 -10 -10 -9 -8 -7 ------- Run | Scr Mat Min Exi Min Mat Fac Peak Influence 1256 | . 264 135 . 385 1256 1244 Initial 502 | . . 102 . . 150 502 Average 509 | . 128 115 . 211 670 800 Maximum Alert Level 4 | . 1 . . 1 4 4 Low Security (%) 27 | 100 56 100 . 28 8 . Level 1 17 | . 43 . . 71 16 . Level 2 23 | . . . . . 30 46 Level 3 20 | . . . . . 30 34 Level 4 10 | . . . . . 14 19 Level 5 . | . . . . . . . High Security . | . . . . . . . Max Security . | . . . . . . . Squads Dispatched 8 | . 1 . . . 3 4 Investigation . | . . . . . . . Extermination 1 | . . . . . . 1 Reinforcement 7 | . 1 . . . 3 3 Assault . | . . . . . . . Garrison . | . . . . . . . Intercept . | . . . . . . . Searches Triggered . | . . . . . . . Construction Impeded . | . . . . . . . Haulers Reinforced 1 | . . . . . . 1 Active Scanning Responses . | . . . . . . . Cargo Convoy Interrupts . | . . . . . . . Stealth | -11 -10 -10 -10 -9 -8 -7 --------- Run | Scr Mat Min Exi Min Mat Fac Distress Signals 2 | . 1 . . . . 1 Communications Jammed . | . . . . . . . Distress Signals . | . . . . . . . Times Spotted 56 | . 15 2 . 3 27 9 Peak Tracking Total 7 | . 3 3 . 3 7 3 Tactical Retreats 1 | . . . . . 1 . Traps | -11 -10 -10 -10 -9 -8 -7 ------- Run | Scr Mat Min Exi Min Mat Fac Traps Triggered . | . . . . . . . Indirectly . | . . . . . . . Trap Hack Attempts . | . . . . . . . Triggered . | . . . . . . . Disarmed . | . . . . . . . Reprogrammed . | . . . . . . . Reused . | . . . . . . . Traps Extracted . | . . . . . . . Installed . | . . . . . . . Triggered . | . . . . . . . Machines | -11 -10 -10 -10 -9 -8 -7 ---------- Run | Scr Mat Min Exi Min Mat Fac Machines Disabled 33 | . . . . 1 12 20 Max in Single Turn 5 | . . . . 1 2 5 Machines Sabotaged . | . . . . . . . Garrisons Compromised . | . . . . . . . Overloaded Fab Kills . | . . . . . . . Hacking | -11 -10 -10 -10 -9 -8 -7 --------- Run | Scr Mat Min Exi Min Mat Fac Machines Accessed 5 | . 1 1 2 . 1 . Terminals 2 | . 1 . . . 1 . Fabricators . | . . . . . . . Repair Stations . | . . . . . . . Recycling Units . | . . . . . . . Scanalyzers . | . . . . . . . Garrison Access . | . . . . . . . Total Hacks 31 | . 2 1 24 . 4 . Successful 26 | . . 1 24 . 1 . Failed 5 | . 2 . . . 3 . Catastrophic . | . . . . . . . Database Lockouts . | . . . . . . . Manual 7 | . 2 . 1 . 4 . Terminals 6 | . 2 . . . 4 . Fabricators . | . . . . . . . Repair Stations . | . . . . . . . Recycling Units . | . . . . . . . Scanalyzers . | . . . . . . . Garrison Access . | . . . . . . . Terminal Hacks 25 | . . 1 24 . . . Record 23 | . . . 23 . . . Open Door 1 | . . 1 . . . . EX-Prototype ID Bank 1 | . . . 1 . . . Fabricator Hacks . | . . . . . . . Repair Station Hacks . | . . . . . . . Recycling Unit Hacks . | . . . . . . . Scanalyzer . | . . . . . . . Garrison Access Hacks . | . . . . . . . Unauthorized Hacks 1 | . . . . . 1 . Terminals 1 | . . . . . 1 . Botnet 1 | . . . . . 1 . Fabricators . | . . . . . . . Repair Stations . | . . . . . . . Recycling Units . | . . . . . . . Scanalyzers . | . . . . . . . Garrison Access . | . . . . . . . Data Cores Recovered . | . . . . . . . Used . | . . . . . . . Hacking Detections 2 | . 1 . . . 1 . Full Trace Events . | . . . . . . . Feedback Events . | . . . . . . . Feedback Blocked . | . . . . . . . Robot Schematics Acquired . | . . . . . . . Robots Built . | . . . . . . . Authchips . | . . . . . . . Time . | . . . . . . . Total Robot Build Rating . | . . . . . . . Part Schematics Acquired . | . . . . . . . Parts Built . | . . . . . . . Authchips . | . . . . . . . Time . | . . . . . . . Total Part Build Rating . | . . . . . . . Parts Repaired . | . . . . . . . Time . | . . . . . . . Parts Recycled . | . . . . . . . Recycled Matter . | . . . . . . . Retrieved Matter . | . . . . . . . Retrieved Components . | . . . . . . . Parts Scanalyzed . | . . . . . . . Part Schematics Acquired . | . . . . . . . Parts Damaged . | . . . . . . . Bothacking | -11 -10 -10 -10 -9 -8 -7 ------------ Run | Scr Mat Min Exi Min Mat Fac Used RIF Installer . | . . . . . . . Robots Hacked . | . . . . . . . Non-combat . | . . . . . . . Combat . | . . . . . . . Robot Hacks Applied . | . . . . . . . Relay Couplers Released 1 | . . . . . . 1 Programmers 1 | . . . . . . 1 Fabnet Peak Effective % . | . . . . . . . Robots Rewired . | . . . . . . . Allies Hacked . | . . . . . . . Hacks Repelled . | . . . . . . . Allies | -11 -10 -10 -10 -9 -8 -7 -------- Run | Scr Mat Min Exi Min Mat Fac Total Allies 3 | . . 3 . . . . Largest Group 3 | . . 3 3 3 1 . Highest-Rated Group 40 | . . 40 40 40 16 . Highest-Rated Ally 16 | . . 16 16 16 16 . Total Orders . | . . . . . . . Ally Attacks 15 | . . 3 . 3 9 . Total Damage 184 | . . 46 . 45 93 . Kills 3 | . . 1 . 1 1 . Allies Corrupted . | . . . . . . . Allies Melted . | . . . . . . . Intel | -11 -10 -10 -10 -9 -8 -7 ------- Run | Scr Mat Min Exi Min Mat Fac Robot Analysis Total . | . . . . . . . Derelict Logs Recovered 1 | . . 1 . . . . Drone Launches . | . . . . . . . Drone Recoveries . | . . . . . . . Exploration | -11 -10 -10 -10 -9 -8 -7 ------------- Run | Scr Mat Min Exi Min Mat Fac Turns Passed 2625 | 44 305 298 338 197 806 637 Spaces Moved 1716 | 37 156 223 280 125 474 421 Core 10 | 10 . . . . . . Treads . | . . . . . . . Legs 1706 | 27 156 223 280 125 474 421 Wheels . | . . . . . . . Hover . | . . . . . . . Flight . | . . . . . . . Fastest Speed 50 | 50 120 120 120 120 120 120 Average Speed 120 | 101 120 120 120 120 123 121 Slowest Speed 190 | 120 120 120 120 120 190 123 Overloaded Moves . | . . . . . . . Propulsion Burnouts . | . . . . . . . Robots Hopped . | . . . . . . . Cave-ins Triggered 1 | . . . . . 1 . Exploration Rate (%) 38 | 4 33 52 68 39 61 15 Regions Visited 6 Branch Regions 3 Pre-discovered Areas 3 | . . 1 1 1 . . Known Exits Taken 5 | . 1 1 1 1 1 . Unknown Exits Taken 1 | 1 . . . . . . Scrap Searched . | . . . . . . . Spaces Dug 95 | . . . . . 47 48 Terrain Destroyed 715 | . . . . 95 380 240 Melee . | . . . . . . . Projectile 24 | . . . . 2 13 9 AOE 691 | . . . . 93 367 231 Terrain Rammed . | . . . . . . . Walls Destroyed . | . . . . . . . Machines Disabled . | . . . . . . . Actions | -11 -10 -10 -10 -9 -8 -7 --------- Run | Scr Mat Min Exi Min Mat Fac Total 1997 | 41 213 249 282 154 588 470 Wait 106 | . 12 22 . 16 51 5 Move 1709 | 36 155 222 279 124 472 421 Hop . | . . . . . . . Pick Up 4 | . 1 . . . 1 2 Fast Attach 20 | 5 4 . 1 1 7 2 Attach . | . . . . . . . Detach . | . . . . . . . Swap 2 | . . . . . 1 1 Drop 15 | . 2 . 2 1 5 5 Fire 102 | . 33 2 . 6 35 26 Melee . | . . . . . . . Ram . | . . . . . . . Kick . | . . . . . . . Crush . | . . . . . . . Escape Stasis 1 | . . . . . 1 . Rewire . | . . . . . . . Trap . | . . . . . . . Miscellaneous 38 | . 6 3 . 6 15 8 Route ------- -11/Scrapyard -10/Materials (discovered 2 exits: *Mat / *Min) -10/Mines (discovered 2 exits: *Mat / *Exi) -10/Exiles -9/Mines -8/Materials (discovered 3 exits: *Fac x3) -7/Factory History --------- Turn | Location | Event 2 | -11/Scrapyard | Upgraded with Propulsion slot (x1) 2 | -11/Scrapyard | Upgraded with Utility slot (x1) 2 | -11/Scrapyard | Upgraded with Weapon slot (x1) 4 | -11/Scrapyard | Discovered new exit (range 15) 45 | -11/Scrapyard | Entered Materials 238 | -10/Materials | Destroyed 7 combat bots 295 | -10/Materials | Discovered new exit (range 4) 301 | -10/Materials | Build established: Mutant 313 | -10/Materials | Discovered new exit (range 16) 349 | -10/Materials | Identified exit to Mines 350 | -10/Materials | Entered Mines 354 | -10/Mines | Assisted by bots powering up and referring to "LRC-V3" 519 | -10/Mines | Met a Derelict who couldn't figure out how to use a Trap Extractor 575 | -10/Mines | Reached level 2 612 | -10/Mines | Discovered new exit (range 6) 623 | -10/Mines | Identified exit to Materials 635 | -10/Mines | Deemed a non-threat by the Exiles lab entrance 635 | -10/Mines | Discovered new exit (range 5) 639 | -10/Mines | Identified exit to Exiles 648 | -10/Mines | Entered Exiles 648 | -10/Exiles | Accompanied by 3 allies 681 | -10/Exiles | Met 8R-AWN 699 | -10/Exiles | Met EX-HEX 731 | -10/Exiles | Met EX-BIN 748 | -10/Exiles | Aligned with FarCom system 749 | -10/Exiles | Given EX-Vault access code 778 | -10/Exiles | Opened EX-Vault 788 | -10/Exiles | Found YOLO Cannon 813 | -10/Exiles | Warned to stay clear of 0b10 Research branches 907 | -10/Exiles | Met EX-DEC 938 | -10/Exiles | Learned location of Zion (-6) 973 | -10/Exiles | Discovered new exit (range 11) 985 | -10/Exiles | Identified exit to Mines 986 | -10/Exiles | Left Exiles lab with YOLO Cannon 986 | -10/Exiles | Entered Mines 986 | -9/Mines | Accompanied by 3 allies 987 | -9/Mines | Learned location of Storage (-9) 1020 | -9/Mines | Found a damaged Exp. Sensor Array with a note attached 1023 | -9/Mines | Found Prototype Device 1023 | -9/Mines | Identified Exp. Sensor Array 1114 | -9/Mines | Reached level 3 1172 | -9/Mines | Discovered new exit (range 9) 1182 | -9/Mines | Identified exit to Materials 1183 | -9/Mines | Entered Materials 1183 | -8/Materials | Accompanied by 1 ally 1185 | -8/Materials | Reached level 4 1204 | -8/Materials | Upgraded with Propulsion slot (x1) 1204 | -8/Materials | Upgraded with Utility slot (x1) 1291 | -8/Materials | Build established: Skirmisher 1396 | -8/Materials | Discovered new exit (range 16) 1461 | -8/Materials | Reached level 5 1680 | -8/Materials | Upgraded with Utility slot (x1) 1692 | -8/Materials | Crushed by falling debris 1719 | -8/Materials | Discovered new exit (range 11) 1728 | -8/Materials | Reached level 6 1730 | -8/Materials | Core integrity fell below 50% 1902 | -8/Materials | Reached level 7 1918 | -8/Materials | Discovered new exit (range 15) 1945 | -8/Materials | Identified exit to Factory 1949 | -8/Materials | Build established: Scavenger-Mutant 1989 | -8/Materials | Entered Factory 1990 | -7/Factory | Core integrity fell below 50% 1991 | -7/Factory | Reached level 8 2319 | -7/Factory | Reached level 9 2504 | -7/Factory | Reached level 10 2582 | -7/Factory | Core integrity fell below 20% 2626 | -7/Factory | Self-destructed Last Messages --------------- 02618_ Destroyed Ion Engine. 02618_ U-05 Engineer lays Concrete. 02618_ K-01 Serf collects debris. 02618_ U-05 Engineer lays Concrete. 02619_ U-05 Engineer builds a Wall. 02619_ U-05 Engineer lays Concrete. 02621_ U-05 Engineer builds a Wall. 02622_ U-05 Engineer lays Concrete. 02622_ K-01 Serf collects debris. 02622_ YOLO Cannon suddenly explodes. 02622_ Imp. Aluminum Leg destroyed. 02622_ Imp. Signal Interpreter destroyed. 02622_ Imp. Cooling System destroyed. 02622_ Core damaged (-134). 02622_ U-05 Engineer destroyed. 02622_ U-05 Engineer lays Concrete. 02624_ R-06 Scavenger collects Welding Torch. 02624_ U-05 Engineer lays Concrete. 02625_ R-06 Scavenger collects Lgt. Ion Engine. 02626_ U-05 Engineer lays Concrete. Map ----- +----------------------------------------------------+ | ?????????????????????????? "" "" " F | | ?????????????????????????? "" | | ????????????????????????? "" | | ????????????????????????? | | ????????????????????????? | | ?????????????????????????? ############## | | ??????????????????????????? ?????????????# | | ????????????????????????????? ??????????????# | | ????????????????????????????? ?????????????# | | ??????????????????????????"" ?????????????# | | ????????????????????????? ############## | | ????????????????????????? # # | | ????????????????????????? # # | | ?????????????????????????;; # # | | ????????????????????????? ; # #% | | ????????????????????????? ; # %# | | ????????????????????????? ; # + | | ?????????????????????####; u # # | | ?????????????????????# u # + | | ########?????????????# u a# ##### | | ??????????????# u # k #???? | | ???????"?????# | #???? | | ????????""" ??# rr # #??## | | "" ""?????# """ # % ################## | | "" ""??????? t r u | | """ ""??????????????# @ | | """ ""??????????????# u | | """ ""??????????????#; ;; ;###+####+#########""" | | #??????????## ;# ! # # | | #???????????# ## # |! %# " | | #???????????# ?# """" # |! # """ | | #???????????# ?# """" # # """ | | ###########???????????#??# """" # # """ | | ?????????????????????????# """" # """"" #= """ | | ?????????????????????????#= # """"" # """ | | ?????????????????????????# "??" # """ # """ | | ?????????????????????????# "??" # # | | ?????????????????????????# "??" ########## | | ?????????????????????????+ "??? ?????????# | | ?????????????????????????? ??? ?????????# | | ?????????????????????????? ???? ?????????# | | ??????????????????????????????????????????# | | ???????????????????????????????????????????####### | | | | | | | | | | | | | | | +----------------------------------------------------+ Best States ------------- Heat Dissipation 52 Energy Generation 16 Energy Capacity 290 Matter Stores 300 Matter Capacity 300 Sight Range 16 Robot Scan Range 20 Terrain Scan Density 10 Armor Coverage 600 Evasion (%) 55 Item Schematics ----------------- None Robot Schematics ------------------ None Fabricated ------------ Nothing Alien Tech Used ----------------- None Achievements -------------- None Challenges ------------ None RPGLIKE | -11 -10 -10 -10 -9 -8 -7 --------- Run | Scr Mat Min Exi Min Mat Fac Levels Raised 9 | . . 1 . 1 4 3 XP Earned 17225 | 3000 920 618 350 1477 6062 4798 XP Spent 13300 | 3000 . . 100 2200 2700 5300 Upgrades 21 | 6 . . 1 4 3 7 Propulsion Slot 2 | 1 . . . . 1 . Utility Slot 3 | 1 . . . . 2 . Weapon Slot 1 | 1 . . . . . . Mass Support 1 | . . . 1 . . . Inventory Capacity 3 | 3 . . . . . . Ranged Accuracy 7 | . . . . 4 . 3 TH Damage % 4 | . . . . . . 4 Protomatter Created 442 | . 123 . . 42 138 139 Integrity Restored 765 | . 117 51 . 126 312 159 Core 765 | . 117 51 . 126 312 159 Protomatter Decayed 109 | . 28 . . . 47 34 Game ------ Seed ReflectiveThrowingEdition Manual? 0 Play Time 00:19:18 Cumulative 116.6 hours Start 2022.05.06 @ 16:09:56 End 2022.05.06 @ 16:26:41 Sessions 1 Manual Loads 0 Difficulty Rogue Special Mode Winter2019/RPGLIKE Game No. 79 Rogue 40 Adventurer 5 Explorer 34 Win Type - Total 19 Types 10/0/4/4/1/0/0/0/0 Lore% 75 Gallery% 70 Achievement% 76 Wizard Run 0 Options --------- ASCII 0 Keyboard 0 Movement Mouse Keybinds 0 Fullscreen 1 Font 18/Terminus Map View 76x50 Tactical HUD 1 Map Filters NONE Filters NONE Steam 1 RUN: 2f807588-9813-4a45-9f8d-0f43d43f4422